Cogmind - Beta 13 @@@ ROGUE MODE // 2024.04.02 @ 14:43:40 Player: writers.room Result: Destroyed by G-34 Mercenary with Small Laser Performance ------------- Evolutions (1) 500 Regions Visited (2) 400 Robots Destroyed (3) 15 Value Destroyed (88) 88 Prototype IDs (2) 40 Alien Tech Used (0) 0 Bonus (0) 0 TOTAL SCORE: 1043 Bonus ------- None Cogmind --------- Core Integrity 0/400 Matter 146/300 Energy 35/100 System Corruption 0% Temperature Cool (6) Movement Core (50) Location -9/Materials Parts ------- > --- POWER (1) -------- (None) > --- PROPULSION (4) --- (None) > --- UTILITY (2) ------ (None) > --- WEAPON (2) ------- (None) > --- INVENTORY (5) ---- Welding Torch Peak State ------------ > --- POWER ------------ Ion Engine > --- PROPULSION ------- Aluminum Leg Aluminum Leg > --- UTILITY ---------- (None) > --- WEAPON ----------- Grenade Launcher > --- INVENTORY -------- (None) [Rating: 4] Favorites ----------- Power Ion Engine Engine Ion Engine Propulsion Aluminum Leg Leg Aluminum Leg Utility High-capacity Storage Unit Storage High-capacity Storage Unit Weapon Grenade Launcher Launcher Grenade Launcher Special Weapon Mining Laser Build | -11 -10 -9 ------- Run | Yrd Mat Mat Slots Evolved 2 | . . 2 Power . | . . . Propulsion 2 | . . 2 Utility . | . . . Weapon . | . . . Parts Attached 8 | . 6 2 Power 2 | . 2 . Engine 2 | . 2 . Core . | . . . Reactor . | . . . Propulsion 2 | . 2 . Treads . | . . . Leg 2 | . 2 . Wheel . | . . . Hover . | . . . Flight . | . . . Utility 1 | . 1 . Device . | . . . Storage 1 | . 1 . Processor . | . . . Hackware . | . . . Protection . | . . . Artifact . | . . . Weapon 3 | . 1 2 Energy Gun . | . . . Energy Cannon . | . . . Ballistic Gun . | . . . Ballistic Cannon . | . . . Launcher 1 | . 1 . Special Weapon 2 | . . 2 Impact Weapon . | . . . Slashing Weapon . | . . . Piercing Weapon . | . . . Special Melee Weapon . | . . . Unidentified Prototypes . | . . . Parts Lost 5 | . . 5 Power 1 | . . 1 Propulsion 2 | . . 2 Utility . | . . . Weapon 2 | . . 2 Highest Loss Streak 5 | . . 5 To Critical Strikes . | . . . Average Slot Usage (%) 33 | . 37 25 Engine 10 | . 10 8 Leg 21 | . 24 15 Launcher 1 | . 2 . Naked Turns 50 | . 27 23 Heaviest Build 8 | . 8 5 Greatest Support 20 | 3 20 20 Greatest Overweight (x) . | . . . Average Overweight (x) . | . . . Largest Inventory Capacity 20 | 5 20 5 Average Capacity 5 | 5 5 5 Most Carried 5 | . 5 3 Average Carried 2 | . 1 2 Final Capacity 5 | 5 5 5 Final Carried 3 | . 3 1 Class Distribution -------------------- 100% | Mutant Dominant Class ---------------- Mutant | -10/Materials Mutant | -9/Materials Resources | -11 -10 -9 ----------- Run | Yrd Mat Mat Matter Collected 2 | . 2 . Remotely . | . . . Salvage Created 30 | . 30 . Parts 1 | . 1 . Haulers Intercepted . | . . . Recyclers Shooed 1 | . 1 . Parts Field Recycled . | . . . Retrieved Matter . | . . . Parts Self-Destructed . | . . . Prevented . | . . . Kills | -11 -10 -9 ------- Run | Yrd Mat Mat Combat Hostiles Destroyed 2 | . 2 . Melee 1 | . 1 . AOE 1 | . 1 . Classes Destroyed 2 | . 2 . Tunneler 1 | . 1 . Grunt 2 | . 2 . Best Kill Streak 3 | . 3 . Combat Bots Only 2 | . 2 . Max Kills in Single Turn 1 | . 1 . Gunslinging . | . . . Exploded 1 | . 1 . Melee 1 | . 1 . Uniques/NPCs Destroyed . | . . . Combat | -11 -10 -9 -------- Run | Yrd Mat Mat Hostile Shots Fired 73 | . 13 60 Missed 16 | . 3 13 Damage Taken 819 | . 124 695 Core 447 | . 39 408 Absorbed by Shields . | . . . Core Remaining (%) 92 | 100 84 . Volleys Fired 10 | . 6 4 Largest 1 | . 1 1 Hottest 100 | . 30 100 Shots Fired 10 | . 6 4 Gun . | . . . Cannon . | . . . Launcher 6 | . 6 . Special 4 | . . 4 Kinetic . | . . . Thermal 4 | . . 4 Explosive 6 | . 6 . Electromagnetic . | . . . Robot Hit Streak 4 | . 4 3 Robot Miss Streak 2 | . 2 1 Penetration Max . | . . . Secondary Targets . | . . . Shots Hit Robots 7 | . 4 3 Core Hits 13 | . 11 2 Critical Kills . | . . . Critical Parts Destroyed . | . . . Critical Strikes . | . . . Melee Attacks . | . . . Impact . | . . . Slashing . | . . . Piercing . | . . . Sneak Attacks . | . . . Combat Hostiles . | . . . Follow-up Attacks . | . . . Damage Inflicted 507 | . 379 128 Guns . | . . . Cannons . | . . . Explosions 366 | . 366 . Melee . | . . . Ramming 111 | . 13 98 Kinetic . | . . . Thermal 30 | . . 30 Explosive 366 | . 366 . Electromagnetic . | . . . Impact . | . . . Slashing . | . . . Piercing . | . . . Highest Corruption . | . . . Average Corruption . | . . . Corruption Purged . | . . . Corruption Blocked . | . . . Overload Shots . | . . . Overflow Damage 14 | . 14 . Projectiles . | . . . Explosions 14 | . 14 . Melee . | . . . Knockbacks 1 | . 1 . Impact 1 | . 1 . Kinetic . | . . . Secondary . | . . . Self-Inflicted Damage 34 | . 5 29 Shots 1 | . 1 . Rammed 18 | . . 18 Targets Rammed 46 | . 5 41 Kicked 28 | . 5 23 Crushed . | . . . Highest Temperature 12 | . 5 12 Average Temperature 4 | . 2 6 Received Heat Transfer 327 | . 63 264 Siege Activations . | . . . Robots Corrupted . | . . . Combat Hostiles . | . . . Parts Fried . | . . . Impact Corruptions . | . . . Robots Melted . | . . . Combat Hostiles . | . . . Parts Melted . | . . . Heat Transferred 100 | . . 100 Parts Sabotaged . | . . . Parts Stolen . | . . . Parts Stripped . | . . . Power Chain Reactions . | . . . Alert | -11 -10 -9 ------- Run | Yrd Mat Mat Peak Influence 104 | . 104 58 Initial 43 | . . 43 Average 57 | . 66 42 Maximum Alert Level . | . . . Low Security (%) 100 | 100 100 100 Level 1 . | . . . Level 2 . | . . . Level 3 . | . . . Level 4 . | . . . Level 5 . | . . . High Security . | . . . Max Security . | . . . Squads Dispatched 2 | . . 2 Investigation 1 | . . 1 Extermination . | . . . Reinforcement 1 | . . 1 Assault . | . . . Garrison . | . . . Intercept . | . . . Searches Triggered . | . . . Construction Impeded . | . . . Haulers Reinforced . | . . . Active Scanning Responses . | . . . Cargo Convoy Interrupts . | . . . Stealth | -11 -10 -9 --------- Run | Yrd Mat Mat Distress Signals . | . . . Communications Jammed . | . . . Distress Signals . | . . . Times Spotted 9 | . 4 5 Peak Tracking Total 5 | . 2 5 Tactical Retreats . | . . . Traps | -11 -10 -9 ------- Run | Yrd Mat Mat Traps Triggered . | . . . Indirectly . | . . . Trap Hack Attempts . | . . . Triggered . | . . . Disarmed . | . . . Reprogrammed . | . . . Reused . | . . . Traps Extracted . | . . . Installed . | . . . Triggered . | . . . Machines | -11 -10 -9 ---------- Run | Yrd Mat Mat Machines Disabled 1 | . 1 . Max in Single Turn 1 | . 1 . Machines Repaired . | . . . Machines Dismantled . | . . . Machines Sabotaged . | . . . Overloaded Fab Kills . | . . . Hacking | -11 -10 -9 --------- Run | Yrd Mat Mat Machines Accessed 5 | . 4 1 Terminals 4 | . 4 . Fabricators . | . . . Repair Stations 1 | . . 1 Recycling Units . | . . . Scanalyzers . | . . . Garrison Access . | . . . Total Hacks 16 | . 13 3 Successful 4 | . 4 . Failed 12 | . 9 3 Catastrophic . | . . . Database Lockouts . | . . . Manual 7 | . 7 . Terminals 13 | . 13 . Fabricators . | . . . Repair Stations 3 | . . 3 Recycling Units . | . . . Scanalyzers . | . . . Garrison Access . | . . . Terminal Hacks 2 | . 2 . Record 1 | . 1 . Prototype ID Bank 1 | . 1 . Fabricator Hacks . | . . . Repair Station Hacks . | . . . Recycling Unit Hacks . | . . . Scanalyzer . | . . . Garrison Access Hacks . | . . . Unauthorized Hacks 2 | . 2 . Terminals 2 | . 2 . Botnet 2 | . 2 . Fabricators . | . . . Repair Stations . | . . . Recycling Units . | . . . Scanalyzers . | . . . Garrison Access . | . . . Data Cores Recovered . | . . . Used . | . . . Hacking Detections 5 | . 4 1 Full Trace Events 1 | . . 1 Feedback Events . | . . . Feedback Blocked . | . . . Robot Schematics Acquired . | . . . Robots Built . | . . . Authchips . | . . . Time . | . . . Total Robot Build Rating . | . . . Part Schematics Acquired . | . . . Parts Built . | . . . Authchips . | . . . Time . | . . . Total Part Build Rating . | . . . Parts Repaired . | . . . Time . | . . . Parts Recycled . | . . . Recycled Matter . | . . . Retrieved Matter . | . . . Retrieved Components . | . . . Parts Scanalyzed . | . . . Part Schematics Acquired . | . . . Parts Damaged . | . . . Bothacking | -11 -10 -9 ------------ Run | Yrd Mat Mat Used RIF Installer . | . . . Robots Hacked . | . . . Non-combat . | . . . Combat . | . . . Robot Hacks Applied . | . . . Relay Couplers Released . | . . . Fabnet Peak Effective % . | . . . Robots Rewired . | . . . Allies Hacked . | . . . Hacks Repelled . | . . . Allies | -11 -10 -9 -------- Run | Yrd Mat Mat Total Allies . | . . . Largest Group . | . . . Highest-Rated Group . | . . . Highest-Rated Ally . | . . . Total Orders . | . . . Ally Attacks . | . . . Total Damage . | . . . Kills . | . . . Allies Corrupted . | . . . Allies Melted . | . . . Intel | -11 -10 -9 ------- Run | Yrd Mat Mat Robot Analysis Total . | . . . Derelict Logs Recovered . | . . . Drone Launches . | . . . Drone Recoveries . | . . . Exploration | -11 -10 -9 ------------- Run | Yrd Mat Mat Turns Passed 486 | 10 328 148 Spaces Moved 363 | 19 275 69 Core 70 | 19 51 . Treads . | . . . Legs 293 | . 224 69 Wheels . | . . . Hover . | . . . Flight . | . . . Fastest Speed 50 | 50 50 120 Average Speed 106 | 50 107 120 Slowest Speed 120 | 50 120 120 Overloaded Moves . | . . . Propulsion Burnouts . | . . . Robots Hopped . | . . . Cave-ins Triggered . | . . . Exploration Rate (%) 20 | 3 50 7 Regions Visited 2 Branch Regions . Pre-discovered Areas . | . . . Known Exits Taken . | . . . Unknown Exits Taken 2 | 1 1 . Scrap Searched . | . . . Spaces Dug . | . . . Terrain Destroyed 15 | . 14 1 Melee . | . . . Projectile 1 | . . 1 AOE 14 | . 14 . Terrain Rammed . | . . . Walls Destroyed . | . . . Machines Disabled . | . . . Actions | -11 -10 -9 --------- Run | Yrd Mat Mat Total 442 | 18 303 121 Wait 5 | . . 5 Move 361 | 18 274 69 Hop . | . . . Pick Up 9 | . 9 . Fast Attach . | . . . Attach 8 | . 6 2 Detach . | . . . Swap . | . . . Drop 3 | . 3 . Fire 10 | . 6 4 Melee . | . . . Ram 18 | . . 18 Kick 28 | . 5 23 Crush . | . . . Escape Stasis . | . . . Rewire . | . . . Trap . | . . . Miscellaneous . | . . . Route ------- -11/Scrapyard -10/Materials (discovered 3 exits: *Mat / [*Min x2]) -9/Materials History --------- Turn | Location | Event 3 | -11/Scrapyard | Discovered new exit (range 15) 11 | -11/Scrapyard | Entered Materials 16 | -10/Materials | Discovered new exit (range 13) 66 | -10/Materials | Discovered new exit (range 8) 314 | -10/Materials | Build established: Mutant 331 | -10/Materials | Discovered new exit (range 8) 339 | -10/Materials | Entered another Materials area 339 | -9/Materials | Evolved 2 slots: Propulsion x2 465 | -9/Materials | Core integrity fell below 50% 483 | -9/Materials | Core integrity fell below 20% 487 | -9/Materials | Destroyed by G-34 Mercenary with Small Laser Last Messages --------------- 00433_ K-01 Serf collects debris. 00433_ Kicked Y-45 Defender out of the way. 00434_ Kicked Y-45 Defender. 00437_ Kicked Y-45 Defender out of the way. 00437_ Aluminum Leg destroyed. 00438_ Kicked Y-45 Defender. 00440_ Kicked Y-45 Defender out of the way. 00441_ Kicked Y-45 Defender. 00449_ Kicked Y-45 Defender out of the way. 00449_ Aluminum Leg destroyed. 00449_ Critical hit (Burn: +37). 00450_ Slammed into Y-45 Defender. 00454_ Destabilizing: Core damaged (-4). 00455_ Ion Engine destroyed. 00455_ Critical hit (Burn: +37). 00455_ Slammed into Y-45 Defender. 00468_ ALERT: Hostiles spotted, dispatching reinforcements to Terminal M012. 00473_ Mining Laser destroyed. 00481_ Welding Torch destroyed. Map ----- +----------------------------------------------------+ | ?????????????????????????????????????????????????? | | ?????????????????????????????????????????????????? | | ?????????????????????????????????????????????????? | | ?????????????????????????????????????????????????? | | ?????????????????????????????????????????????????? | | ?????????????????????????????????????????????????? | | ?????????????????????????????????????????????????? | | ?????????????????????????????????????????????????? | | ?????????????????????????????????????????????????? | | ?????????????????????????????????????????????????? | | ?????????????????????????????????????????????????? | | ?????????????????????????????????????????????????? | | ?????????????????????????????????????????????????? | | ?????????????????????????????????????????????????? | | ?????????????????????????????????????????????????? | | ?????????????????????????????????????????????????? | | ?????????????????????????????????????????????????? | | ?????????????????????????????????????????????????? | | ???????????????????????????????????#?????????????? | | ?????????????????????????????????? #?????????????? | | ??????????????????????############+#?????????????? | | ????????????????##????# w #?????????????? | | ??????????????? ???#""" """ ##????????????? | | ?????????????? ??#"R """ !!! #????????????? | | ???????????????? ?#"""g""" !! ##????????????? | | ????????????????"" # @Y !! #?????????????? | | ???????????????""" ####gu############# ???????? | | ???????????????""" m ??????? | | ?????????????? """ ??????? | | ???????????? ??????? | | ???????????? ########### ???????? | | ?????????????"T"########## #???????????????????? | | ?????????????????????????# #???????????????????? | | ????????????############## #???????????????????? | | ????????????# # #???????????????????? | | ????????????# """"" # #???????????????????? | | ????????????# """"""""" # #???????????????????? | | ????????????# """ """ + #???????????????????? | | ????????????# # #???????????????????? | | ????????????############## #???????????????????? | | ???????????????########### #???????????????????? | | ??????????? #???????????????????? | | ??????????? #???????????????????? | | ??????????????############ #???????????????????? | | ?????????????????????????# #???????????????????? | | ?????????????????????????# #???????????????????? | | ?????????????????????????# #???????????????????? | | ?????????????????????????# #???????????????????? | | ?????????????????????????#####???????????????????? | | ?????????????????????????????????????????????????? | +----------------------------------------------------+ Best States ------------- Heat Dissipation 28 Energy Generation 10 Energy Capacity 250 Matter Stores 146 Matter Capacity 300 Sight Range 16 Terrain Scan Density 10 Evasion (%) 55 Item Schematics ----------------- None Robot Schematics ------------------ None Fabricated ------------ Nothing Alien Tech Used ----------------- None Achievements -------------- None Challenges ------------ None Game ------ Seed AccelerationNuclearPlating Manual? 0 Play Time 00:06:24 Cumulative 24.9 hours Start 2024.04.02 @ 14:38:44 End 2024.04.02 @ 14:43:40 Sessions 1 Manual Loads 0 Difficulty Rogue Special Mode None Game No. 62 Rogue 22 Adventurer 14 Explorer 26 Win Type - Total 0 Types 0/0/0/0/0/0/0/0/0 Lore% 18 Gallery% 27 Achievement% 23 Wizard Run 0 Options --------- Layout 0 ASCII 0 Keyboard 0 Movement Mouse Keybinds 0 Fullscreen 1 Font 18/SmallcapsGlow Map View 76x50 Zoom Use 0% Tactical HUD 1 Map Filters NONE Filters NONE Steam 1 RUN: 8571eff1-2015-42f3-b6b2-9138795f0cbd